[Event "Centenario Panaderia Pulido 2023"]
[Site "San Mateo Gran Canaria"]
[Date "2023.12.06"]
[Round "5.12"]
[White "Cruz Pino, Adrian"]
[Black "Garcia Rodriguez, Adriana"]
[Result "0-1"]
[ECO "C00"]
[WhiteElo "2048"]
[BlackElo "1659"]
[Annotator "RC"]
[PlyCount "96"]
[EventDate "2023.12.04"]
[EventType "swiss"]
[EventCountry "ESP"]
[SourceTitle "playchess.com"]
[Source "ChessBase"]
[SourceQuality "1"]
[TimeControl "5400+30"]

1. Nf3 {[%emt 0:00:09]} d5 {[%emt 0:00:03]} 2. g3 {[%emt 0:00:15]} c5 {[%emt 0:00:05]} 3. Bg2 {[%emt 0:00:12]} Nf6 {[%emt 0:00:08]} 4. d3 {[%emt 0:00:36]} e6 {[%emt 0:00:04]} 5. O-O {[%emt 0:00:11]} Be7 {[%emt 1:32:40]} 6. Nbd2 {[%emt 0:00:15]} O-O {[%emt 0:00:00]} 7. e4 {[%emt 0:00:10]} Nc6 {[%emt 0:00:00]} 8. e5 {[%emt 0:00:32]} Nd7 {[%emt 0:00:00]} 9. Re1 {[%emt 0:00:21]} Qc7 {[%emt 0:00:00]} 10. Qe2 {[%emt 0:00:12]} b6 {[%emt 0:00:00]} 11. Nf1 {[%emt 0:00:11]} Bb7 {[%emt 0:00:00]} 12. h4 {[%emt 0:00:10]} d4 {[%emt 0:00:00]} 13. Bf4 {[%emt 0:00:14]} Nb4 {[%emt 0:00:00]} 14. N1h2 {[%emt 0:00:18]} Nd5 {[%emt 0:00:00]} 15. Bd2 {[%emt 0:00:19]} Rac8 {[%emt 0:00:00]} 16. Ng4 {[%emt 0:01:59]} b5 {[%emt 0:00:00]} 17. Ng5 {[%emt 0:02:06]} c4 {[%emt 0:00:00]} 18. Qe4 {[%emt 0:02:24]} Bxg5 {[%emt 0:00:00]} 19. Bxg5 {[%emt 0:01:39]} Qb6 {[%emt 0:00:00]} 20. Qe2 {[%emt 0:01:58]} Nb4 {[%emt 0:00:00]} 21. Bxb7 {[%emt 0:00:40]} Qxb7 {[%emt 0:00:00]} 22. Be7 {[%emt 0:04:35]} cxd3 {[%emt 0:00:00]} 23. cxd3 {[%emt 0:00:02]} Nc2 {[%emt 0:00:00]} 24. Bxf8 {[%emt 0:02:01]} Nxe1 {[%emt 0:00:00]} 25. Rxe1 {[%emt 0:02:07]} Kxf8 {[%emt 0:00:00]} 26. Qd2 {[%emt 0:03:30]} Qd5 {[%emt 0:00:00]} 27. Qb4+ {[%emt 0:05:06]} Qc5 {[%emt 0:00:00]} 28. Qxc5+ {[%emt 0:02:04]} Rxc5 {[%emt 0:00:00]} 29. Re4 {[%emt 0:00:15]} h5 {[%emt 0:00:00]} 30. Nh2 {[%emt 0:01:04]} Nxe5 {[%emt 0:00:00]} 31. Rxd4 {[%emt 0:00:06]} Rc2 {[%emt 0:00:00]} 32. Rb4 {[%emt 0:14:58]} a6 {[%emt 0:00:00]} 33. Rb3 {[%emt 0:04:21]} Rd2 {[%emt 0:00:00]} 34. f4 {[%emt 0:52:30]} Nxd3 {[%emt 0:00:00]} 35. Nf3 {[%emt 0:00:00]} Rd1+ {[%emt 0:00:00]} 36. Kg2 {[%emt 0:00:00]} Nc5 {[%emt 0:00:00]} 37. Rc3 {[%emt 0:00:00]} Rd5 {[%emt 0:00:00]} 38. b4 {[%emt 0:00:00]} Nd3 {[%emt 0:00:00]} 39. a3 {[%emt 0:00:00]} Rd6 {[%emt 0:00:00]} 40. Rc7 {[%emt 0:00:00]} f6 {[%emt 0:00:00]} 41. Ra7 {[%emt 0:00:00]} Nb2 {[%emt 0:00:00]} 42. Rc7 {[%emt 0:00:00]} Nc4 {[%emt 0:00:00]} 43. a4 {[%emt 0:00:00]} Ne3+ {[%emt 0:00:00]} 44. Kf2 {[%emt 0:00:00]} Nd1+ {[%emt 0:00:00]} 45. Ke2 {[%emt 0:00:00]} bxa4 {[%emt 0:00:00]} 46. Nd2 {[%emt 0:00:00]} Nb2 {[%emt 0:00:00]} 47. Ne4 {[%emt 0:00:00]} Rb6 {[%emt 0:00:00]} 48. Nc5 {[%emt 0:00:00]} Kg8 {[%emt 0:00:00]} 0-1

[Event "Centenario Panaderia Pulido 2023"]
[Site "San Mateo Gran Canaria"]
[Date "2023.12.06"]
[Round "5.13"]
[White "Rivero Pena, Himar"]
[Black "Bergero, Simone"]
[Result "0-1"]
[ECO "B33"]
[WhiteElo "1594"]
[BlackElo "2010"]
[Annotator "RC"]
[PlyCount "56"]
[EventDate "2023.12.04"]
[EventType "swiss"]
[EventCountry "ESP"]
[SourceTitle "playchess.com"]
[Source "ChessBase"]
[SourceQuality "1"]
[TimeControl "5400+30"]

1. e4 {[%emt 0:00:10]} c5 {[%emt 0:00:03]} 2. Nf3 {[%emt 0:00:50]} Nc6 {[%emt 0:00:04]} 3. d4 {[%emt 0:00:06]} cxd4 {[%emt 0:00:04]} 4. Nxd4 {[%emt 0:00:29]} e5 {[%emt 0:00:05]} 5. Ne2 {[%emt 0:02:16]} Nf6 {[%emt 0:00:14]} 6. Nbc3 {[%emt 0:00:12]} Bb4 {[%emt 0:00:11]} 7. Bd2 {[%emt 0:00:21]} O-O {[%emt 0:07:04]} 8. g3 {[%emt 0:05:52]} d5 {[%emt 0:08:21]} 9. exd5 {[%emt 0:05:12]} Nxd5 {[%emt 0:00:08]} 10. Bg2 {[%emt 0:00:20]} Nb6 {[%emt 0:01:28]} 11. b3 {[%emt 0:05:59]} Bg4 {[%emt 0:09:41]} 12. f3 {[%emt 0:04:38]} Bf5 {[%emt 0:02:27]} 13. O-O {[%emt 0:00:40]} Nd4 {[%emt 0:00:36]} 14. Ne4 {[%emt 0:07:49]} Bxd2 {[%emt 0:00:53]} 15. Qxd2 {[%emt 0:01:04]} Bxe4 {[%emt 0:00:04]} 16. Nxd4 {[%emt 0:00:20]} Bg6 {[%emt 0:00:08]} 17. f4 {[%emt 0:03:32]} Qxd4+ {[%emt 0:00:11]} 18. Qxd4 {[%emt 0:00:04]} exd4 {[%emt 0:00:00]} 19. f5 {[%emt 0:00:00]} Bh5 {[%emt 0:00:00]} 20. Rf4 {[%emt 0:00:16]} f6 {[%emt 0:01:17]} 21. g4 {[%emt 0:01:07]} Bf7 {[%emt 0:02:09]} 22. Rxd4 {[%emt 0:00:06]} Rfd8 {[%emt 0:04:07]} 23. Rad1 {[%emt 0:00:32]} Rxd4 {[%emt 0:00:05]} 24. Rxd4 {[%emt 0:00:02]} Rb8 {[%emt 0:00:05]} 25. c4 {[%emt 0:00:19]} Be8 {[%emt 0:00:38]} 26. c5 {[%emt 0:08:38]} Nd7 {[%emt 0:03:11]} 27. Rc4 {[%emt 0:06:19]} Ne5 {[%emt 1:00:46]} 28. Rb4 {[%emt 0:01:07]} Bc6 {[%emt 0:00:00]} 0-1

[Event "Centenario Panaderia Pulido 2023"]
[Site "San Mateo Gran Canaria"]
[Date "2023.12.06"]
[Round "5.14"]
[White "Almenares Garcia, Mario Adrian"]
[Black "Mesa Rodriguez, Antonio"]
[Result "1-0"]
[ECO "E90"]
[WhiteElo "2000"]
[BlackElo "1384"]
[Annotator "RC"]
[PlyCount "138"]
[EventDate "2023.12.04"]
[EventType "swiss"]
[EventCountry "ESP"]
[SourceTitle "playchess.com"]
[Source "ChessBase"]
[SourceQuality "1"]
[TimeControl "5400+30"]

1. d4 {[%emt 0:03:36]} Nf6 {[%emt 0:00:05]} 2. c4 {[%emt 0:00:34]} g6 {[%emt 0:00:08]} 3. Nc3 {[%emt 0:00:08]} Bg7 {[%emt 0:00:06]} 4. Nf3 {[%emt 0:00:10]} O-O {[%emt 0:00:19]} 5. e4 {[%emt 0:00:36]} d6 {[%emt 0:00:19]} 6. Be3 {[%emt 0:00:39]} Nbd7 {[%emt 1:32:33]} 7. h3 {[%emt 0:00:31]} e5 {[%emt 0:00:00]} 8. d5 {[%emt 0:00:38]} Ne8 {[%emt 0:00:00]} 9. Qd2 {[%emt 0:00:18]} f5 {[%emt 0:00:00]} 10. Bg5 {[%emt 0:00:34]} Ndf6 {[%emt 0:00:00]} 11. Bd3 {[%emt 0:00:16]} f4 {[%emt 0:00:00]} 12. g4 {[%emt 0:03:26]} h6 {[%emt 0:00:00]} 13. Bxf6 {[%emt 0:00:32]} Bxf6 {[%emt 0:00:00]} 14. O-O-O {[%emt 0:00:15]} Bd7 {[%emt 0:00:00]} 15. Rdg1 {[%emt 0:00:13]} Bg7 {[%emt 0:00:00]} 16. Kb1 {[%emt 0:00:48]} Rb8 {[%emt 0:05:00]} 17. Qe2 {[%emt 0:00:36]} c6 {[%emt 0:00:00]} 18. Nd2 {[%emt 0:00:11]} c5 {[%emt 0:00:00]} 19. Bc2 {[%emt 0:04:05]} Nc7 {[%emt 0:00:00]} 20. Nb5 {[%emt 0:00:39]} Nxb5 {[%emt 0:00:00]} 21. cxb5 {[%emt 0:00:15]} Qb6 {[%emt 0:00:00]} 22. a4 {[%emt 0:00:13]} a6 {[%emt 0:00:00]} 23. Nc4 {[%emt 0:00:09]} Qd8 {[%emt 0:00:00]} 24. b6 {[%emt 0:00:15]} Be8 {[%emt 0:00:00]} 25. f3 {[%emt 0:00:17]} Rf7 {[%emt 0:00:00]} 26. h4 {[%emt 0:00:59]} Bf8 {[%emt 0:00:00]} 27. Bb3 {[%emt 0:00:25]} Rg7 {[%emt 0:00:00]} 28. Qc2 {[%emt 0:00:41]} Be7 {[%emt 0:00:00]} 29. g5 {[%emt 0:06:37]} h5 {[%emt 0:00:00]} 30. a5 {[%emt 0:01:52]} Kh7 {[%emt 0:00:00]} 31. Ba4 {[%emt 0:00:28]} Kh8 {[%emt 0:00:00]} 32. Rc1 {[%emt 0:00:25]} Ra8 {[%emt 0:00:00]} 33. Rh2 {[%emt 0:00:21]} Bb5 {[%emt 0:00:00]} 34. Bb3 {[%emt 0:00:59]} Kh7 {[%emt 0:00:00]} 35. Ba2 {[%emt 0:00:10]} Qe8 {[%emt 0:00:00]} 36. Na3 {[%emt 0:00:23]} Bd7 {[%emt 0:00:00]} 37. Qc3 {[%emt 0:00:18]} Rc8 {[%emt 0:00:00]} 38. b4 {[%emt 0:00:50]} Rg8 {[%emt 0:00:00]} 39. Rhc2 {[%emt 0:04:51]} Ba4 {[%emt 0:00:00]} 40. Bb3 {[%emt 0:00:25]} Qd7 {[%emt 0:00:00]} 41. Kb2 {[%emt 0:00:13]} cxb4 {[%emt 0:00:00]} 42. Qxb4 {[%emt 0:00:31]} Bxb3 {[%emt 0:00:00]} 43. Qxb3 {[%emt 1:11:38]} Rc5 {[%emt 0:00:00]} 44. Rxc5 {[%emt 0:00:00]} dxc5 {[%emt 0:00:00]} 45. Nc4 {[%emt 0:00:00]} Bd6 {[%emt 0:00:00]} 46. Ka3 {[%emt 0:00:00]} Re8 {[%emt 0:04:08]} 47. Qa4 {[%emt 0:00:00]} Qxa4+ {[%emt 0:00:20]} 48. Kxa4 {[%emt 0:00:00]} Bf8 {[%emt 0:00:16]} 49. Rd1 {[%emt 0:00:00]} Kg8 {[%emt 0:02:38]} 50. Kb3 {[%emt 0:00:00]} Kf7 {[%emt 0:00:46]} 51. d6 {[%emt 0:00:00]} Ke6 {[%emt 0:00:16]} 52. Rd5 {[%emt 0:00:00]} Rd8 {[%emt 0:05:13]} 53. Rxe5+ {[%emt 0:00:00]} Kf7 {[%emt 0:03:04]} 54. Rxc5 {[%emt 0:00:00]} Bxd6 {[%emt 0:00:13]} 55. Nxd6+ {[%emt 0:00:00]} Rxd6 {[%emt 0:00:07]} 56. Rd5 {[%emt 0:00:00]} Re6 {[%emt 0:02:27]} 57. Rd7+ {[%emt 0:00:00]} Re7 {[%emt 0:00:06]} 58. Rxe7+ {[%emt 0:00:00]} Kxe7 {[%emt 0:00:03]} 59. Kc4 {[%emt 0:00:00]} Kd6 {[%emt 0:01:53]} 60. Kd4 {[%emt 0:00:00]} Ke6 {[%emt 0:00:00]} 61. e5 {[%emt 0:00:00]} Kf5 {[%emt 0:00:00]} 62. e6 {[%emt 0:00:00]} Kxe6 {[%emt 0:00:00]} 63. Ke4 {[%emt 0:00:00]} Kd6 {[%emt 0:00:00]} 64. Kxf4 {[%emt 0:00:00]} Kd5 {[%emt 0:00:04]} 65. Ke3 {[%emt 0:00:00]} Ke5 {[%emt 0:01:29]} 66. f4+ {[%emt 0:00:00]} Kf5 {[%emt 0:00:41]} 67. Kf3 {[%emt 0:00:00]} Ke6 {[%emt 0:00:07]} 68. Ke4 {[%emt 0:00:00]} Kf7 {[%emt 0:01:28]} 69. f5 {[%emt 0:00:00]} Kg8 {[%emt 0:01:11]} 1-0

[Event "Centenario Panaderia Pulido 2023"]
[Site "San Mateo Gran Canaria"]
[Date "2023.12.06"]
[Round "5.15"]
[White "Guerrero Orihuela, Jose Luis"]
[Black "Monteiro Rodrigues, Carlos"]
[Result "1-0"]
[ECO "D08"]
[WhiteElo "1901"]
[BlackElo "1366"]
[Annotator "RC"]
[PlyCount "27"]
[EventDate "2023.12.04"]
[EventType "swiss"]
[EventCountry "ESP"]
[SourceTitle "playchess.com"]
[Source "ChessBase"]
[SourceQuality "1"]
[TimeControl "5400+30"]

1. d4 {[%emt 0:00:05]} d5 {[%emt 0:00:30]} 2. c4 {[%emt 0:00:10]} e5 {[%emt 0:00:41]} 3. dxe5 {[%emt 0:00:54]} d4 {[%emt 0:00:12]} 4. Nf3 {[%emt 1:31:21]} Bc5 {[%emt 1:31:07]} 5. a3 {[%emt 0:00:30]} Bg4 {[%emt 0:00:30]} 6. b4 {[%emt 0:00:00]} Bxf3 {[%emt 0:00:30]} 7. gxf3 {[%emt 0:01:00]} Be7 {[%emt 0:00:00]} 8. e3 {[%emt 0:00:00]} Nc6 {[%emt 0:00:00]} 9. Bb2 dxe3 {[%emt 0:01:30]} 10. Qxd8+ {[%emt 0:01:30]} Rxd8 {[%emt 0:00:00]} 11. fxe3 {[%emt 0:00:00]} Bh4+ {[%emt 0:00:00]} 12. Ke2 {[%emt 0:01:00]} Nxe5 {[%emt 0:01:30]} 13. Bxe5 {[%emt 0:00:30]} f6 {[%emt 0:00:00]} 14. Bc3 {[%emt 0:00:00]} 1-0

[Event "Centenario Panaderia Pulido 2023"]
[Site "San Mateo Gran Canaria"]
[Date "2023.12.08"]
[Round "6.1"]
[White "Korneev, Oleg"]
[Black "Gimenez Menchon, Cesar"]
[Result "1-0"]
[ECO "C41"]
[WhiteElo "2470"]
[BlackElo "2088"]
[Annotator "RC"]
[PlyCount "115"]
[EventDate "2023.12.04"]
[EventType "swiss"]
[EventCountry "ESP"]
[SourceTitle "playchess.com"]
[Source "ChessBase"]
[SourceQuality "1"]
[TimeControl "5400+30"]

1. e4 {[%emt 0:00:04]} d6 {[%emt 0:00:08]} 2. d4 {[%emt 0:00:46]} Nf6 {[%emt 0:00:07]} 3. Nc3 {[%emt 0:00:04]} e5 {[%emt 0:00:05]} 4. Nf3 {[%emt 0:00:31]} Nbd7 {[%emt 0:00:06]} 5. Bc4 {[%emt 0:03:15]} Be7 {[%emt 0:00:12]} 6. O-O {[%emt 0:00:12]} O-O {[%emt 0:00:06]} 7. Re1 {[%emt 0:00:23]} c6 {[%emt 0:00:10]} 8. a4 {[%emt 0:00:07]} h6 {[%emt 0:00:08]} 9. h3 {[%emt 0:03:33]} Re8 {[%emt 0:00:07]} 10. a5 {[%emt 0:00:17]} Qc7 {[%emt 0:00:16]} 11. Be3 {[%emt 0:00:34]} exd4 {[%emt 0:00:14]} 12. Nxd4 {[%emt 0:00:28]} Bf8 {[%emt 0:00:10]} 13. Bf4 {[%emt 0:00:49]} Rb8 {[%emt 0:00:36]} 14. Bg3 {[%emt 0:15:44]} b5 {[%emt 0:00:16]} 15. axb6 {[%emt 0:00:08]} axb6 {[%emt 0:00:04]} 16. b4 {[%emt 0:02:58]} b5 {[%emt 0:00:13]} 17. Bb3 {[%emt 0:00:08]} Ne5 {[%emt 0:00:33]} 18. Rb1 {[%emt 0:10:58]} Bb7 {[%emt 0:06:15]} 19. Kh1 {[%emt 0:08:58]} Rbd8 {[%emt 0:02:52]} 20. f4 {[%emt 0:05:43]} Ng6 {[%emt 0:00:17]} 21. Qf3 {[%emt 0:02:18]} Qc8 {[%emt 0:01:32]} 22. Ba2 {[%emt 0:13:00]} Qa8 {[%emt 0:13:35]} 23. Ra1 {[%emt 0:00:16]} Qc8 {[%emt 0:00:08]} 24. Bh2 {[%emt 0:04:00]} d5 {[%emt 0:26:58]} 25. e5 {[%emt 0:00:41]} Bxb4 {[%emt 0:18:37]} 26. exf6 {[%emt 0:01:20]} Rxe1+ {[%emt 0:00:05]} 27. Rxe1 {[%emt 0:00:02]} c5 {[%emt 0:04:35]} 28. Ndxb5 {[%emt 0:11:15]} d4 {[%emt 0:00:05]} 29. Qg3 {[%emt 0:06:39]} c4 {[%emt 0:00:05]} 30. f5 {[%emt 0:05:46]} Qxf5 {[%emt 0:01:26]} 31. Bxc4 {[%emt 0:00:44]} dxc3 {[%emt 0:06:39]} 32. Rf1 {[%emt 0:00:22]} Qxc2 {[%emt 0:05:11]} 33. Bxf7+ {[%emt 0:00:10]} Kh7 {[%emt 0:00:07]} 34. fxg7 {[%emt 0:00:42]} Kxg7 {[%emt 0:01:00]} 35. Bxg6 {[%emt 0:00:08]} Bxg2+ {[%emt 0:02:47]} 36. Qxg2 {[%emt 0:00:06]} Qxg2+ {[%emt 0:00:09]} 37. Kxg2 {[%emt 0:00:01]} Rd2+ {[%emt 0:00:43]} 38. Rf2 {[%emt 0:00:56]} Kxg6 {[%emt 0:00:41]} 39. Bf4 {[%emt 0:00:18]} Rb2 {[%emt 0:02:10]} 40. Be5 {[%emt 0:02:31]} Rxf2+ {[%emt 0:02:09]} 41. Kxf2 {[%emt 0:00:03]} c2 {[%emt 0:00:07]} 42. Bf4 {[%emt 0:00:13]} Be7 {[%emt 0:05:24]} 43. Nc3 {[%emt 0:02:42]} Kh5 {[%emt 0:00:33]} 44. Ne2 {[%emt 0:01:34]} Kh4 {[%emt 0:00:51]} 45. Kg2 {[%emt 0:00:09]} Bg5 {[%emt 0:00:21]} 46. Bg3+ {[%emt 0:00:20]} Kh5 {[%emt 0:00:08]} 47. Nf4+ {[%emt 0:00:01]} Bxf4 {[%emt 0:00:11]} 48. Bxf4 {[%emt 0:00:02]} Kg6 {[%emt 0:00:12]} 49. Kg3 {[%emt 0:00:20]} Kh5 {[%emt 0:00:20]} 50. Bc1 {[%emt 0:00:11]} Kg6 {[%emt 0:00:08]} 51. Kg4 {[%emt 0:00:03]} Kg7 {[%emt 0:02:54]} 52. Kh5 {[%emt 0:00:06]} Kh7 {[%emt 0:00:15]} 53. Bxh6 {[%emt 0:00:07]} Kg8 {[%emt 0:00:01]} 54. Kg6 {[%emt 0:00:17]} Kh8 {[%emt 0:00:16]} 55. h4 {[%emt 0:00:07]} Kg8 {[%emt 0:00:06]} 56. h5 {[%emt 0:00:05]} Kh8 {[%emt 0:00:05]} 57. Bg7+ {[%emt 0:00:20]} Kg8 {[%emt 0:00:03]} 58. h6 {[%emt 0:00:41]} 1-0

[Event "Centenario Panaderia Pulido 2023"]
[Site "San Mateo Gran Canaria"]
[Date "2023.12.07"]
[Round "6.2"]
[White "Doluhanova, Evgeniya"]
[Black "Strikovic, Aleksa"]
[Result "1/2-1/2"]
[ECO "B44"]
[WhiteElo "2177"]
[BlackElo "2455"]
[Annotator "RC"]
[PlyCount "34"]
[EventDate "2023.12.04"]
[EventType "swiss"]
[EventCountry "ESP"]
[SourceTitle "playchess.com"]
[Source "ChessBase"]
[SourceQuality "1"]
[TimeControl "5400+30"]

1. c4 {[%emt 0:02:17]} c5 {[%emt 0:01:28]} 2. Nf3 {[%emt 0:00:43]} Nf6 {[%emt 0:00:17]} 3. Nc3 {[%emt 0:00:50]} e6 {[%emt 0:00:55]} 4. d4 {[%emt 0:02:09]} cxd4 {[%emt 0:00:08]} 5. Nxd4 {[%emt 0:00:05]} Nc6 {[%emt 0:00:14]} 6. e4 {[%emt 0:02:05]} Bb4 {[%emt 0:00:41]} 7. Nxc6 {[%emt 0:00:35]} bxc6 {[%emt 0:00:06]} 8. Bd3 {[%emt 0:04:51]} e5 {[%emt 0:00:43]} 9. O-O {[%emt 0:00:34]} O-O {[%emt 0:00:06]} 10. Bd2 {[%emt 0:01:25]} d6 {[%emt 0:02:35]} 11. a3 {[%emt 0:00:20]} Bc5 {[%emt 0:01:53]} 12. b4 {[%emt 0:03:03]} Bd4 {[%emt 0:03:11]} 13. h3 {[%emt 0:05:13]} Be6 {[%emt 0:03:07]} 14. Rc1 {[%emt 0:01:04]} d5 {[%emt 0:07:02]} 15. cxd5 {[%emt 0:05:22]} cxd5 {[%emt 0:00:11]} 16. Bg5 {[%emt 0:02:06]} Bxc3 {[%emt 0:23:47]} 17. Rxc3 {[%emt 0:00:47]} dxe4 {[%emt 0:52:36]} 1/2-1/2

[Event "Centenario Panaderia Pulido 2023"]
[Site "San Mateo Gran Canaria"]
[Date "2023.12.07"]
[Round "6.3"]
[White "Hernandez Leon, Alberto"]
[Black "Kurajica, Bojan"]
[Result "0-1"]
[ECO "E16"]
[WhiteElo "2209"]
[BlackElo "2446"]
[Annotator "RC"]
[PlyCount "84"]
[EventDate "2023.12.04"]
[EventType "swiss"]
[EventCountry "ESP"]
[SourceTitle "playchess.com"]
[Source "ChessBase"]
[SourceQuality "1"]
[TimeControl "5400+30"]

1. d4 {[%emt 0:00:02]} Nf6 {[%emt 0:00:41]} 2. c4 {[%emt 0:00:11]} b6 {[%emt 0:00:09]} 3. Nf3 {[%emt 0:00:45]} Bb7 {[%emt 0:00:17]} 4. g3 {[%emt 0:00:13]} e6 {[%emt 0:00:25]} 5. Bg2 {[%emt 0:00:24]} Bb4+ {[%emt 0:00:41]} 6. Bd2 {[%emt 0:00:44]} a5 {[%emt 0:01:38]} 7. O-O {[%emt 0:01:42]} d5 {[%emt 0:00:28]} 8. a3 {[%emt 0:04:33]} Bxd2 {[%emt 0:08:54]} 9. Nbxd2 {[%emt 0:00:09]} a4 {[%emt 0:00:07]} 10. Qc2 {[%emt 0:08:12]} O-O {[%emt 0:03:35]} 11. Rac1 {[%emt 0:01:55]} Nc6 {[%emt 0:03:17]} 12. Rfd1 {[%emt 0:04:16]} Ra5 {[%emt 0:15:53]} 13. e4 {[%emt 0:12:57]} dxe4 {[%emt 0:09:17]} 14. Nxe4 {[%emt 0:00:07]} Nxe4 {[%emt 0:01:56]} 15. Qxe4 {[%emt 0:00:04]} Qf6 {[%emt 0:00:44]} 16. Ne5 {[%emt 0:07:57]} Nxd4 {[%emt 0:00:39]} 17. Qxd4 {[%emt 0:03:24]} Rxe5 {[%emt 0:00:24]} 18. Rd2 {[%emt 0:09:25]} Bxg2 {[%emt 0:00:30]} 19. f4 {[%emt 0:00:50]} Rc5 {[%emt 0:02:04]} 20. Qxf6 {[%emt 0:00:25]} gxf6 {[%emt 0:00:13]} 21. Kxg2 {[%emt 0:00:05]} Rb8 {[%emt 0:01:34]} 22. Rd3 {[%emt 0:06:08]} Kf8 {[%emt 0:02:38]} 23. Kf3 {[%emt 0:02:54]} Ke7 {[%emt 0:00:25]} 24. Ke3 {[%emt 0:00:26]} h5 {[%emt 0:10:18]} 25. Rcc3 {[%emt 0:02:59]} h4 {[%emt 0:02:52]} 26. Rd4 {[%emt 0:03:54]} hxg3 {[%emt 0:01:28]} 27. hxg3 {[%emt 0:00:04]} e5 {[%emt 0:06:43]} 28. Rd5 {[%emt 0:05:17]} c6 {[%emt 0:02:51]} 29. Rd2 {[%emt 0:05:10]} Ke6 {[%emt 0:02:02]} 30. Kf3 {[%emt 0:08:35]} b5 {[%emt 0:00:56]} 31. Rcd3 {[%emt 0:03:45]} bxc4 {[%emt 0:07:15]} 32. Rd6+ {[%emt 0:00:54]} Ke7 {[%emt 0:00:05]} 33. Rd7+ {[%emt 0:00:10]} Kf8 {[%emt 0:01:43]} 34. Ra7 {[%emt 0:00:54]} Rd5 {[%emt 0:01:27]} 35. Rh2 {[%emt 0:03:47]} Kg7 {[%emt 0:00:40]} 36. fxe5 {[%emt 0:01:22]} fxe5 {[%emt 0:00:53]} 37. Ke4 {[%emt 0:00:29]} Kg6 {[%emt 0:02:20]} 38. g4 {[%emt 0:01:43]} f6 {[%emt 0:03:14]} 39. Rhh7 {[%emt 0:00:39]} Rd4+ {[%emt 0:00:12]} 40. Ke3 {[%emt 0:01:37]} Rb3+ {[%emt 0:00:10]} 41. Ke2 {[%emt 0:00:14]} Rxb2+ {[%emt 0:00:24]} 42. Kf3 {[%emt 0:00:17]} Rd3+ {[%emt 0:00:24]} 0-1

[Event "Centenario Panaderia Pulido 2023"]
[Site "San Mateo Gran Canaria"]
[Date "2023.12.07"]
[Round "6.4"]
[White "Uzcategui Rodriguez, Alejandro"]
[Black "Larino Nieto, David"]
[Result "0-1"]
[ECO "C01"]
[WhiteElo "2235"]
[BlackElo "2366"]
[Annotator "RC"]
[PlyCount "70"]
[EventDate "2023.12.04"]
[EventType "swiss"]
[EventCountry "ESP"]
[SourceTitle "playchess.com"]
[Source "ChessBase"]
[SourceQuality "1"]
[TimeControl "5400+30"]

1. d4 {[%emt 1:31:00]} d6 {[%emt 0:01:32]} 2. Nf3 {[%emt 0:00:00]} e6 {[%emt 0:00:59]} 3. e4 {[%emt 0:00:00]} h6 {[%emt 0:00:20]} 4. c4 {[%emt 0:00:00]} g5 {[%emt 0:00:08]} 5. Bd3 {[%emt 0:00:00]} Bg7 {[%emt 0:00:06]} 6. h3 {[%emt 0:00:00]} Ne7 {[%emt 0:00:20]} 7. Nc3 {[%emt 0:00:00]} O-O {[%emt 0:06:19]} 8. Be3 {[%emt 0:00:00]} f5 {[%emt 0:13:56]} 9. Qe2 {[%emt 0:00:00]} f4 {[%emt 0:03:14]} 10. Bd2 {[%emt 0:00:00]} Nbc6 {[%emt 0:00:22]} 11. e5 {[%emt 0:00:00]} Nf5 {[%emt 0:09:30]} 12. O-O-O {[%emt 0:00:00]} Ncxd4 {[%emt 0:02:05]} 13. Nxd4 {[%emt 0:00:00]} Nxd4 {[%emt 0:00:02]} 14. Qe4 {[%emt 0:00:00]} Nf5 {[%emt 0:00:01]} 15. g4 {[%emt 0:00:00]} Nh4 {[%emt 0:00:56]} 16. f3 {[%emt 0:00:00]} Rf7 {[%emt 0:06:12]} 17. Be1 {[%emt 0:00:00]} Bxe5 {[%emt 0:07:01]} 18. Bxh4 {[%emt 0:00:00]} Bxc3 {[%emt 0:00:34]} 19. bxc3 {[%emt 0:00:00]} gxh4 {[%emt 0:00:05]} 20. g5 {[%emt 0:00:00]} hxg5 {[%emt 0:02:11]} 21. Qg6+ {[%emt 0:00:00]} Rg7 {[%emt 0:02:10]} 22. Qh6 {[%emt 0:00:00]} Kf7 {[%emt 0:02:45]} 23. Qh5+ {[%emt 0:00:00]} Ke7 {[%emt 0:00:09]} 24. Bg6 {[%emt 0:00:00]} Qf8 {[%emt 0:01:23]} 25. Rhg1 {[%emt 0:01:39]} Qf6 {[%emt 0:00:12]} 26. Rxg5 {[%emt 0:00:06]} Bd7 {[%emt 0:00:08]} 27. Rdg1 {[%emt 0:01:47]} Rag8 {[%emt 0:00:11]} 28. Kb2 {[%emt 0:03:11]} Be8 {[%emt 0:00:39]} 29. R5g4 {[%emt 0:02:26]} Rxg6 {[%emt 0:00:50]} 30. Qa5 {[%emt 0:00:11]} Rxg4 {[%emt 0:00:32]} 31. Qxc7+ {[%emt 0:00:07]} Bd7 {[%emt 0:41:08]} 32. hxg4 {[%emt 0:00:10]} Rc8 {[%emt 0:00:07]} 33. Qxb7 {[%emt 0:00:08]} Rxc4 {[%emt 0:00:03]} 34. Qb3 {[%emt 0:00:05]} Rc5 {[%emt 0:00:20]} 35. g5 {[%emt 0:00:08]} Rxg5 {[%emt 0:00:12]} 0-1

[Event "Centenario Panaderia Pulido 2023"]
[Site "San Mateo Gran Canaria"]
[Date "2023.12.07"]
[Round "6.5"]
[White "Yao, Stefano"]
[Black "Mamani Beltran, Deniman"]
[Result "1-0"]
[ECO "D63"]
[WhiteElo "2288"]
[BlackElo "2151"]
[Annotator "RC"]
[PlyCount "49"]
[EventDate "2023.12.04"]
[EventType "swiss"]
[EventCountry "ESP"]
[SourceTitle "playchess.com"]
[Source "ChessBase"]
[SourceQuality "1"]
[TimeControl "5400+30"]

1. d4 {[%emt 0:00:30]} d5 {[%emt 0:01:39]} 2. c4 {[%emt 0:00:00]} e6 {[%emt 0:00:18]} 3. Nf3 {[%emt 0:00:00]} Nf6 {[%emt 0:00:19]} 4. Nc3 {[%emt 0:00:20]} Be7 {[%emt 0:00:14]} 5. Bg5 {[%emt 0:01:53]} O-O {[%emt 0:01:32]} 6. e3 {[%emt 0:00:18]} a6 {[%emt 0:00:37]} 7. Rc1 {[%emt 0:03:00]} Nbd7 {[%emt 0:06:59]} 8. c5 {[%emt 0:04:42]} c6 {[%emt 0:04:42]} 9. Bd3 {[%emt 0:03:45]} b6 {[%emt 0:06:47]} 10. cxb6 {[%emt 0:04:43]} Qxb6 {[%emt 0:01:55]} 11. Qc2 {[%emt 0:07:54]} h6 {[%emt 0:00:30]} 12. Bxf6 {[%emt 0:04:38]} Nxf6 {[%emt 0:03:50]} 13. O-O {[%emt 0:00:25]} Bd7 {[%emt 0:01:19]} 14. Na4 {[%emt 0:02:34]} Qb8 {[%emt 0:08:06]} 15. Ne5 {[%emt 0:12:58]} Rc8 {[%emt 0:14:58]} 16. f4 {[%emt 0:07:10]} Be8 {[%emt 0:03:32]} 17. Rf2 {[%emt 0:02:36]} Bd6 {[%emt 0:03:26]} 18. Nc5 {[%emt 0:02:22]} Qb6 {[%emt 0:01:46]} 19. h3 {[%emt 0:01:47]} Bxe5 {[%emt 0:00:49]} 20. fxe5 {[%emt 0:00:28]} Nd7 {[%emt 0:00:09]} 21. Bh7+ {[%emt 0:01:05]} Kf8 {[%emt 0:02:29]} 22. Nxe6+ {[%emt 0:02:08]} Ke7 {[%emt 0:00:05]} 23. Nxg7 {[%emt 0:00:30]} c5 {[%emt 0:01:18]} 24. Nf5+ {[%emt 0:01:41]} Kd8 {[%emt 0:00:27]} 25. Nd6 {[%emt 0:00:30]} 1-0